Cogmind - Beta 12 @@@ ROGUE MODE // 2023.04.28 @ 13:30:24 Player: maxwell Result: Heading to fleet! Performance ------------- Evolutions (9) 4500 Regions Visited (32) 6400 Robots Destroyed (485) 2425 Value Destroyed (24704) 24704 Prototype IDs (54) 1080 Alien Tech Used (9) 1800 Bonus (26485) 26485 TOTAL SCORE: 67394 Bonus ------- Triggered Max Security 2000 High Alert Combat Kills 3821 Follower Combat Kills 1804 Network Hubs Disabled 200 Met Data Miner 300 Destroyed Z-Imprinter 1000 Triggered Deep Caves Wall 500 Exposed GOLEM Chamber 500 Met R17 at Cetus 500 Found Hidden Lab 3000 Used Core Reset Matrix 3000 Met R17 at Research 2000 Scanned by Researcher 1000 Pursued by Intercept 1000 Integrated Exoskeleton 5000 Win 3000 Friendly Fire -2140 Cogmind --------- Core Integrity 1202/1600 Matter 277/300 Energy 194/200 System Corruption 0% Temperature Cool (0) Movement Walking (30) Location To Fleet Rendezvous Parts ------- > --- POWER (2) -------- Matter Drive > --- PROPULSION (3) --- Sigix Exoskeleton > --- UTILITY (4) ------ Advanced Transmission Jammer Advanced Cloaking Device Point Defense Array > --- WEAPON (2) ------- Sigix Sheargun Field Lobotomy Kit > --- INVENTORY (5) ---- Quantum Reactor Light Quantum Reactor Sigix Sheargun Peak State ------------ > --- POWER ------------ Assembled Flux Generator Quantum Reactor > --- PROPULSION ------- Experimental Biometal Heavy Treads Experimental Biometal Heavy Treads Experimental Biometal Heavy Treads > --- UTILITY ---------- Assembled Nanovents Assembled Nanovents Cargo Storage Unit Assembled Biocell Array Advanced Sensor Array Advanced Signal Interpreter Advanced Transmission Jammer Advanced Cloaking Device Assembled Alloy Armor GOLEM Unit > --- WEAPON ----------- Assembled Focal Cannon Assembled Focal Cannon Omega Cannon > --- INVENTORY -------- Armored Heavy Treads Enhanced Armored Heavy Treads Experimental Flexi-carbon Leg Centrium Leg High-density Centrium Leg Experimental Cooling System Advanced Matter Compressor Quantum Capacitor Advanced Transmission Jammer Advanced EM Disruption Field Point Defense Array Advanced Component Analysis Suite Hacking Drone Bay GOLEM Unit Transdimensional Reconstructor Integrated Thermoelectric Network Microwarp Drive Tachyon Dispersion Ray Enhanced Nova Cannon Potential Cannon Gamma Bomb Array Field Lobotomy Kit GAL Module [Rating: 236] Favorites ----------- Power Assembled Flux Generator Engine Improved Deuterium Engine Power Core Nuclear Core Reactor Assembled Flux Generator Propulsion Armored Treads Treads Armored Treads Leg Assembled Alloy Leg Wheel Armored Huge Wheel Utility Huge Storage Unit Device GOLEM Unit Storage Huge Storage Unit Processor Advanced Signal Interpreter Hackware Makeshift Hacking Suite Protection Hardened Light Armor Plating Weapon Assembled Focal Cannon Energy Gun Zionite Laser-M Energy Cannon Assembled Focal Cannon Ballistic Gun Flak Gun Ballistic Cannon Omega Cannon Launcher Gamma Bomb Array Special Weapon Field Lobotomy Kit Impact Weapon Mace Build | -11 -10 -10 -9 -9 -9 -8 -8 -7 -7 -7 -7 -6 -6 -6 -6 -6 -6 -5 -5 -5 -5 -5 -5 -4 -4 -4 -3 -3 -2 -2 -2 -1 ------- Run | Jun Mat Min Mat Min Exi Min Mat Fac Low Low Dat Pro Fac Low Low Zio Dee Pro Fac Ext Cet Arc Hub Fac Arm Lab Res Tes Res Qua Sec Acc Slots Evolved 18 | . . . 2 . . . 2 2 . . . . 2 . . . . . 2 . . . . 2 . . 2 . 2 . . 2 Power 3 | . . . . . . . . . . . . . 1 . . . . . . . . . . . . . . . 1 . . 1 Propulsion 4 | . . . . . . . 2 . . . . . 1 . . . . . . . . . . 1 . . . . . . . . Utility 10 | . . . 2 . . . . 2 . . . . . . . . . . 1 . . . . 1 . . 2 . 1 . . 1 Weapon 1 | . . . . . . . . . . . . . . . . . . . 1 . . . . . . . . . . . . . Parts Attached 498 | 2 10 3 16 8 . 8 16 21 21 21 1 6 31 23 22 10 51 3 10 26 12 9 1 8 33 3 12 41 26 8 26 10 Power 31 | . . 1 1 . . 1 1 2 . . . 2 3 3 2 . 2 . . . . . . . 2 . . 2 2 2 2 3 Engine 12 | . . 1 1 . . 1 1 2 . . . 2 2 1 1 . . . . . . . . . . . . . . . . . Core 6 | . . . . . . . . . . . . . 1 2 1 . 1 . . . . . . . 1 . . . . . . . Reactor 13 | . . . . . . . . . . . . . . . . . 1 . . . . . . . 1 . . 2 2 2 2 3 Propulsion 80 | 2 1 1 5 . . . 3 11 1 . . 1 7 6 2 . 3 . . 3 3 3 . 1 4 . 4 11 4 . 4 . Treads 58 | 2 1 1 5 . . . 3 11 1 . . 1 7 6 1 . . . . . 3 3 . 1 4 . . 1 3 . 4 . Leg 21 | . . . . . . . . . . . . . . . . . 3 . . 3 . . . . . . 4 10 1 . . . Wheel 1 | . . . . . . . . . . . . . . . 1 . . . . . . . . . . . . . . . . . Hover . | . . . . . . . . . . . . . . . . . . . . . . . . . . . . . . . . . Flight . | . . . . . . . . . . . . . . . . . . . . . . . . . . . . . . . . . Utility 243 | . 3 . 6 3 . 3 5 6 7 13 . 1 10 3 6 6 24 3 9 18 7 6 . 4 22 1 8 25 17 6 15 6 Device 153 | . 1 . 1 1 . 1 2 2 4 5 . 1 6 2 6 3 14 2 7 11 1 3 . 3 12 . 7 19 15 6 15 3 Storage 23 | . 2 . 2 . . . . . . . . . . . . . 1 1 1 4 2 . . . 6 . . 3 . . . 1 Processor 11 | . . . . . . . . 1 . 1 . . 1 . . 1 2 . . 3 . . . . . . . . . . . 2 Hackware 10 | . . . . . . . . . . . . . 2 . . 2 . . 1 . 1 1 . . 2 . . . 1 . . . Protection 46 | . . . 3 2 . 2 3 3 3 7 . . 1 1 . . 7 . . . 3 2 . 1 2 1 1 3 1 . . . Artifact . | . . . . . . . . . . . . . . . . . . . . . . . . . . . . . . . . . Weapon 144 | . 6 1 4 5 . 4 7 2 13 8 1 2 11 11 12 4 22 . 1 5 2 . 1 3 5 2 . 3 3 . 5 1 Energy Gun 12 | . . . . . . . . . . . . . . . 1 . 10 . . . . . . . . 1 . . . . . . Energy Cannon 27 | . . . 1 . . . 4 1 2 . . 1 4 1 . 1 5 . . 2 . . . . . . . . 2 . 3 . Ballistic Gun 47 | . 6 1 2 3 . 4 . 1 5 3 1 . 5 5 7 3 1 . . . . . . . . . . . . . . . Ballistic Cannon 3 | . . . . . . . . . . . . . . . . . . . . . . . . . . . . 1 1 . 1 . Launcher 47 | . . . 1 . . . 2 . 5 4 . 1 1 5 4 . 5 . 1 3 2 . 1 3 5 1 . 2 . . 1 . Special Weapon 2 | . . . . . . . . . . . . . . . . . 1 . . . . . . . . . . . . . . 1 Impact Weapon 6 | . . . . 2 . . 1 . 1 1 . . 1 . . . . . . . . . . . . . . . . . . . Slashing Weapon . | . . . . . . . . . . . . . . . . . . . . . . . . . . . . . . . . . Piercing Weapon . | . . . . . . . . . . . . . . . . . . . . . . . . . . . . . . . . . Special Melee Weapon . | . . . . . . . . . . . . . . . . . . . . . . . . . . . . . . . . . Unidentified Prototypes 30 | . 1 . 1 . . . . . . 1 . . 2 . . . 12 . . 1 3 . . . 1 3 . 2 . . 2 1 Corrupted Parts 23 | . . . . . . . . . 1 . . . . 5 5 . . . . . 3 2 . . . . . 7 . . . . System Corruption 166 | . . . . . . . . . 9 . . . . 24 39 . . . . . 32 7 . . . . . 55 . . . . Parts Lost 97 | . 1 3 2 4 . 5 5 1 1 3 . . 6 11 4 . 5 . . 1 3 . . 2 9 . . 19 11 . 1 . Power 11 | . . 1 . . . 1 1 . . . . . 1 2 1 . . . . . . . . 1 1 . . 1 1 . . . Propulsion 22 | . . 1 1 . . . . . . . . . 3 4 1 . 1 . . . . . . . 2 . . 5 4 . . . Utility 43 | . . . 1 3 . 2 4 1 1 2 . . 2 3 1 . 3 . . . 3 . . . 5 . . 8 3 . 1 . Weapon 21 | . 1 1 . 1 . 2 . . . 1 . . . 2 1 . 1 . . 1 . . . 1 1 . . 5 3 . . . Highest Loss Streak 10 | . 1 2 1 2 . 4 2 1 1 2 . . 4 6 2 . 3 . . 1 3 . . 2 4 . . 10 7 . 1 . To Critical Strikes 1 | . . . 1 . . . . . . . . . . . . . . . . . . . . . . . . . . . . . Average Slot Usage (%) 87 | . 98 100 96 99 77 99 99 98 99 99 92 100 88 91 86 91 84 86 87 87 78 77 77 74 69 64 77 81 73 63 68 70 Engine 4 | . 14 14 11 11 11 11 9 6 7 7 7 7 9 4 . 6 3 . . . . . . . . . . . . . . . Reactor 2 | . . . . . . . . . . . . . . . . . 4 6 5 5 4 5 5 4 4 4 4 4 6 6 8 16 Treads 16 | . 27 28 21 22 22 22 35 29 30 29 28 28 31 30 21 18 3 . . . 9 11 11 15 14 14 8 . 5 12 10 . Leg 7 | . . . . . . . . . . . . . . . . . 19 31 27 26 7 5 5 . 1 4 12 24 11 . 1 9 Device 15 | . 12 14 15 5 11 12 14 19 19 13 14 14 12 13 26 26 16 12 15 12 11 12 11 15 10 10 13 15 17 20 21 27 Storage 9 | . 14 14 11 11 11 11 9 7 7 7 7 7 6 6 6 6 8 17 16 16 12 11 11 10 12 9 8 8 8 8 7 . Processor 5 | . . . . . . . . 6 7 10 7 7 1 6 6 10 7 6 5 8 8 5 5 5 5 4 4 4 4 4 3 . Protection 7 | . . . 14 27 22 20 12 10 10 13 21 21 6 8 . . 3 . . . 4 3 5 9 6 4 7 7 4 4 3 . Energy Cannon 6 | . . . . . . . 11 11 2 . . 3 4 3 . 4 5 11 15 15 13 16 16 13 13 9 13 11 11 9 9 . Ballistic Gun 6 | . 27 28 20 16 . 22 3 2 11 11 . 7 7 6 7 5 . . . . . . . . . . . . . . . . Naked Turns . | . . . . . . . . . . . . . . . . . . . . . . . . . . . . . . . . . Heaviest Build 282 | 13 52 52 107 107 97 103 103 107 112 117 111 115 125 125 115 115 153 158 174 174 176 175 175 183 243 259 265 263 281 274 282 55 Greatest Support 255 | 40 40 43 46 46 46 46 90 88 88 88 88 96 116 100 80 60 132 132 132 132 160 160 160 240 240 178 178 153 210 210 255 60 Greatest Overweight (x) 50 | . 1 1 2 2 2 2 1 1 1 1 1 1 1 1 1 1 50 1 1 1 1 5 1 . 1 1 4 3 8 1 1 . Average Overweight (x) 1 | . . 1 1 2 2 2 1 1 1 1 1 1 . . 1 1 3 1 1 1 . 1 . . . 1 1 1 1 . . . Largest Inventory Capacity 30 | 8 20 20 25 25 25 25 25 25 25 25 25 25 25 25 25 25 25 25 25 25 25 25 25 25 30 30 30 30 30 30 30 5 Average Capacity 25 | 8 14 20 22 25 25 25 25 25 25 25 25 25 25 25 25 25 25 25 25 25 25 25 25 25 29 30 30 30 30 30 27 5 Most Carried 30 | 6 15 14 25 25 25 24 25 25 25 25 25 25 25 25 25 25 25 25 25 25 25 25 25 25 29 30 30 30 25 28 30 5 Average Carried 23 | 5 9 13 19 22 24 21 20 24 24 24 25 24 23 23 23 24 22 25 24 24 23 24 25 23 25 28 29 28 22 25 25 4 Final Capacity 30 | 8 20 20 25 25 25 25 25 25 25 25 25 25 25 25 25 25 25 25 25 25 25 25 25 25 30 30 30 30 30 30 5 5 Final Carried 29 | 4 14 11 25 23 25 20 25 25 25 25 25 25 20 24 21 25 25 25 25 22 25 25 25 22 22 29 29 25 23 27 5 3 Class Distribution -------------------- 23% | Mutant 16% | Trapper-Mutant 16% | Scavenger-Mutant 13% | Hauler-Golem 10% | Golem 6% | Hauler-Mutant 6% | Scavenger-Golem Dominant Class ---------------- Mutant | -10/Materials Mutant | -10/Mines Mutant | -9/Materials Mutant | -9/Mines Mutant | -9/Exiles Mutant | -8/Mines Mutant | -8/Materials Scavenger-Mutant | -7/Factory Scavenger-Mutant | -7/Lower Caves Scavenger-Mutant | -7/Lower Caves Trapper-Mutant | -7/Data Miner Trapper-Mutant | -6/Proximity Caves Trapper-Skirmisher | -6/Factory Trapper-Mutant | -6/Lower Caves Trapper-Mutant | -6/Lower Caves Trapper-Mutant | -6/Zion Scavenger-Mutant | -6/Deep Caves Golem | -5/Proximity Caves Golem | -5/Factory Golem | -5/Extension Scavenger-Golem | -5/Cetus Scavenger-Golem | -5/Archives Scavenger-Golem | -5/Hub_04(d) Scavenger-Golem | -4/Factory Hauler-Golem | -4/Armory Hauler-Golem | -4/Lab Hauler-Golem | -3/Research Hauler-Golem | -3/Testing Hauler-Golem | -2/Research Hauler-Mutant | -2/Quarantine Hauler-Mutant | -2/Section 7 Alien-Sigix | -1/Access Resources | -11 -10 -10 -9 -9 -9 -8 -8 -7 -7 -7 -7 -6 -6 -6 -6 -6 -6 -5 -5 -5 -5 -5 -5 -4 -4 -4 -3 -3 -2 -2 -2 -1 ----------- Run | Jun Mat Min Mat Min Exi Min Mat Fac Low Low Dat Pro Fac Low Low Zio Dee Pro Fac Ext Cet Arc Hub Fac Arm Lab Res Tes Res Qua Sec Acc Matter Collected 10380 | 185 541 184 335 416 . 262 214 275 316 589 . 241 768 512 640 145 747 67 98 274 292 127 127 155 626 . 208 711 421 43 782 79 Remotely 1245 | . . . . . . . . . . . . . . . 640 145 460 . . . . . . . . . . . . . . . Salvage Created 25178 | . 719 293 870 288 . 245 874 724 494 376 . 47 820 803 637 . 1730 424 330 1439 1455 718 382 1497 3247 . 35 3514 977 294 1740 206 Parts 1219 | . 40 25 75 17 . 11 48 38 25 13 . 3 46 35 25 . 20 16 17 67 66 37 16 84 152 . 2 159 65 26 73 18 Haulers Intercepted 7 | . 1 . 2 . . . 3 . . . . . . . . . . . . . . . 1 . . . . . . . . . Recyclers Shooed 4 | . . . . . . . . . 2 . . . 1 . . . . . . . . . . . . . . 1 . . . . Parts Field Recycled . | . . . . . . . . . . . . . . . . . . . . . . . . . . . . . . . . . Retrieved Matter . | . . . . . . . . . . . . . . . . . . . . . . . . . . . . . . . . . Parts Self-Destructed 82 | . . . . . . . . . 15 10 . 4 . 9 14 5 . 25 . . . . . . . . . . . . . . Prevented 37 | . . . . . . . . . 2 5 . . . 24 6 . . . . . . . . . . . . . . . . . Kills | -11 -10 -10 -9 -9 -9 -8 -8 -7 -7 -7 -7 -6 -6 -6 -6 -6 -6 -5 -5 -5 -5 -5 -5 -4 -4 -4 -3 -3 -2 -2 -2 -1 ------- Run | Jun Mat Min Mat Min Exi Min Mat Fac Low Low Dat Pro Fac Low Low Zio Dee Pro Fac Ext Cet Arc Hub Fac Arm Lab Res Tes Res Qua Sec Acc Combat Hostiles Destroyed 440 | . 18 10 14 8 . 5 14 12 16 8 . 4 18 15 20 . 59 10 5 17 24 4 4 24 44 . . 43 14 4 25 1 Melee 1 | . . . . . . . . . . . . . . . . . . . . . . . . . 1 . . . . . . . Guns 95 | . 18 10 14 8 . 5 . 3 2 3 . 1 6 3 2 . 15 . . . . . . . . . . . . . 4 1 Cannons 135 | . . . . . . . 5 8 . . . . 6 1 . . . 10 5 16 6 4 4 11 13 . . 22 10 3 11 . AOE 154 | . . . . . . . 6 1 14 5 . 3 4 8 18 . 41 . . . 12 . . 11 15 . . 9 1 1 5 . Classes Destroyed 28 | . 6 1 2 2 . 1 3 1 3 1 . 1 . . . . 3 . . 1 . . . . 1 . . . 1 . 1 . Worker 15 | . 1 . 3 1 . . 3 2 . . . . . . . . . . . 1 . . 1 1 . . . . . . . 2 Builder 16 | . . . 1 . . . 2 . . . . . 1 . . . . . 1 1 . . . 2 . . . 2 1 2 3 . Tunneler 1 | . . 1 . . . . . . . . . . . . . . . . . . . . . . . . . . . . . . Hauler 7 | . 1 . 2 . . . 3 . . . . . . . . . . . . . . . 1 . . . . . . . . . Recycler 5 | . 2 . 1 . . . . . . . . . . . . . . . . 1 . . . . . . . 1 . . . . Minesweeper 3 | . . . . . . . . . 2 1 . . . . . . . . . . . . . . . . . . . . . . Mechanic 2 | . . . . . . . 1 . . . . . . . . . . . . . . . . . . . . 1 . . . . Operator 15 | . . . . . . . . . . . . . . . . . . . . 1 . 9 . . 1 . 1 2 . . 1 . Watcher 28 | . 2 . 5 . . . 1 5 . . . . . . . . . . . 3 1 . 1 1 1 . . 3 2 1 . 2 Swarmer 77 | . 6 6 4 . . . 3 . 10 1 . 3 5 4 10 . . 5 . . 4 . . 9 5 . . 2 . . . . Saboteur 2 | . . . . . . . . . . . . . . . . . . . . . . . . . 2 . . . . . . . Grunt 126 | . 12 4 7 5 . 3 4 5 3 4 . . 7 4 4 . . 2 . 6 10 . 4 3 15 . . 24 . . . . Brawler 9 | . . . . . . . . . 1 . . . . . 3 . . . . . 1 . . . 2 . . 2 . . . . Duelist 6 | . . . . . . . . . 1 . . . . . 1 . . 2 . . . . . . 1 . . 1 . . . . Researcher 4 | . . . . . . . . . . 1 . . . . . . . . . . . . . . . . . 2 . . 1 . Sentry 50 | . . . 3 . . . 3 3 1 1 . . 2 . 2 . . 1 2 7 . 4 . 6 8 . . 3 2 . 2 . Demolisher 2 | . . . . 2 . . . . . . . . . . . . . . . . . . . . . . . . . . . . Specialist 12 | . . . . . . . 2 . . . . . . . . . . . . . . . . . 4 . . 2 . . 4 . Hunter 26 | . . . . . . 2 1 2 . . . . 1 6 . . . . 1 1 2 . . 2 2 . . 1 2 . 3 . Programmer 43 | . . . . . . . . 2 . 2 . . 3 . . . . . 2 . . . . 4 5 . . 7 5 4 8 1 Heavy 3 | . . . . . . . 1 . . . . . . . . . . . . . . . . . . . . . 1 . 1 . Q-Series 3 | . . . . . . . . . . . . . . . . . . . . . . . . . . . . . 3 . . . Behemoth 5 | . . . . . . . . . . . . 1 . 1 . . . . . 2 . . . . . . . . 1 . . . Cetus Guard 7 | . . . . . . . . . . . . . . . . . . . . . 7 . . . . . . . . . . . S7 Guard 1 | . . . . . . . . . . . . . . . . . . . . . . . . . . . . . . . 1 . Tracker 2 | . . . . . . . . . . . . . . . . . . . . . . . . . . . . . . . 2 . Combat Programmer 2 | . . . . . . . . . . . . . . . . . . . . . . . . . . . . . . . 2 . Executioner 2 | . . . . . . . . . . . . . . . . . . . . . . . . . . . . . . . 2 . Protovariant G 1 | . . . . . . . . . . . . . . . . . . . . . . . . . . . . 1 . . . . Z-Light 4 | . . . . . . . . . . . . . . . . . 4 . . . . . . . . . . . . . . . Packrat 1 | . . . . . . . . . 1 . . . . . . . . . . . . . . . . . . . . . . . Assembler 2 | . . . . . . . . . . . . . . . . . 2 . . . . . . . . . . . . . . . Assembled 46 | . . . . 1 . . . . . . . . . . . . 45 . . . . . . . . . . . . . . . Golem 9 | . . . . . . . . . . . . . . . . . 9 . . . . . . . . . . . . . . . Thug 1 | . . . . . . . . . . . . . . . . . . . . 1 . . . . . . . . . . . . Best Kill Streak 43 | . 4 4 7 3 . 3 6 2 7 3 . 3 6 3 8 . 43 5 2 4 8 6 4 6 11 . 1 8 3 3 7 2 Combat Bots Only 41 | . 3 3 4 3 . 3 4 2 7 3 . 3 6 3 8 . 41 5 2 3 8 1 3 6 11 . . 8 3 2 6 1 Max Kills in Single Turn 9 | . 1 2 2 2 . 1 3 1 2 3 . 3 2 2 3 . 9 1 1 2 3 1 1 4 4 . 1 3 2 2 3 2 Gunslinging 1 | . . 1 . 1 . . . . . . . . . . . . . . . . . . . . . . . . . . . . Exploded 9 | . . . . . . . 2 1 2 3 . 3 2 2 3 . 9 . . . 3 . . 3 4 . . 3 1 1 2 . Melee 1 | . . . . . . . . . . . . . . . . . . . . . . . . . 1 . . . . . . . Uniques/NPCs Destroyed 2 | . . . . . . . . . . . . . . . . . 1 . . . 1 . . . . . . . . . . . Z-Imprinter (-6/Deep Caves) A7 (-5/Cetus) Combat | -11 -10 -10 -9 -9 -9 -8 -8 -7 -7 -7 -7 -6 -6 -6 -6 -6 -6 -5 -5 -5 -5 -5 -5 -4 -4 -4 -3 -3 -2 -2 -2 -1 -------- Run | Jun Mat Min Mat Min Exi Min Mat Fac Low Low Dat Pro Fac Low Low Zio Dee Pro Fac Ext Cet Arc Hub Fac Arm Lab Res Tes Res Qua Sec Acc Damage Taken 37278 | . 555 339 458 1107 . 458 964 1301 447 673 . 121 2078 1953 771 . 1228 1157 154 1395 1445 189 332 1833 3534 . 208 4814 3978 800 3703 1283 Core 3446 | . 69 61 64 191 . 83 127 71 64 47 . 40 72 153 48 . 112 130 . 158 148 28 57 163 244 . 17 285 266 125 225 398 Absorbed by Shields . | . . . . . . . . . . . . . . . . . . . . . . . . . . . . . . . . . Reduced by Siege Mode 397 | . . . . . . . . . . . . . . . . . . . . . 41 . . 103 41 . . . . . 212 . Redirected to Shielding 624 | . . . . 37 . 103 280 32 . . . . . . . . 172 . . . . . . . . . . . . . . . Regen/Repaired (Parts) 1530 | . . . . . . . . . . . . . 97 . . . . . . . . . . . . . 44 . 740 435 214 . Core Remaining (%) 61 | 100 . 48 . . . 15 76 . . . . 68 . . . . . 39 . . . . 60 . . 64 . 76 . . 57 75 Volleys Fired 1318 | . 57 22 51 32 . 23 40 58 30 22 . 12 53 52 24 1 98 29 30 54 50 30 28 58 106 32 3 116 65 24 91 27 Largest 4 | . 2 2 2 2 . 2 2 2 2 2 . 2 2 2 2 1 2 2 3 3 3 3 3 3 3 1 4 4 3 2 3 2 Hottest 200 | . 46 46 46 46 . 46 136 136 68 56 . 103 112 103 60 80 153 50 75 75 175 75 75 75 80 25 155 155 200 200 200 200 Shots Fired 2384 | . 113 44 101 61 . 48 76 116 39 34 . 25 100 80 31 2 169 58 53 133 74 77 57 109 171 32 6 228 108 47 155 37 Gun 736 | . 113 44 100 61 . 48 . 14 14 24 . 11 57 49 11 1 109 . . . . . . . . . 1 13 . . 33 33 Cannon 1460 | . . . . . . . 72 102 16 . . 12 37 8 . 1 41 58 53 130 58 77 57 93 142 32 5 193 108 47 118 . Launcher 184 | . . . 1 . . . 4 . 9 10 . 2 6 23 20 . 19 . . 3 16 . . 16 29 . . 22 . . 4 . Special 4 | . . . . . . . . . . . . . . . . . . . . . . . . . . . . . . . . 4 Kinetic 588 | . 113 44 100 61 . 48 . 14 14 24 . 11 57 49 11 1 6 . . . . . . . . . . 13 4 . 18 . Thermal 1442 | . . . . . . . 72 102 1 . . 12 25 8 . 1 108 58 53 130 35 77 57 93 142 32 5 180 104 47 100 . Explosive 59 | . . . 1 . . . 4 . 9 4 . 2 . 5 9 . 19 . . 3 3 . . . . . . . . . . . Electromagnetic 225 | . . . . . . . . . 15 6 . . 18 18 11 . 36 . . . 36 . . 16 29 . 1 35 . . 4 . Slashing 66 | . . . . . . . . . . . . . . . . . . . . . . . . . . . . . . . 33 33 Robot Hit Streak 58 | . 18 10 17 10 . 11 7 12 18 7 . 10 11 20 6 . 32 58 8 17 25 26 5 18 22 . 2 20 40 6 15 3 Robot Miss Streak 7 | . 7 2 3 4 . 5 5 7 4 7 . 3 7 2 1 . 2 2 1 2 2 1 4 6 5 . 1 4 3 1 2 4 Penetration Max 1 | . . . . . . . . . . . . . . . . . . . . . . . . . . . . . . . . 1 Secondary Targets 8 | . . 3 2 2 . . . . 1 . . . . . . . . . . . . . . . . . . . . . . . Max Gunslinging Chain 1 | . . 1 1 1 . . . . 1 . . . . . . . . . . . . . . . . . . . . . . . Capacitor 6 | . . . . . . . . . . . . . . . . . . . . . . . . . . . . . . . 6 . Shots Hit Robots 1455 | . 81 34 76 42 . 33 50 72 27 22 . 18 84 63 12 . 93 42 19 88 54 53 21 68 83 . 2 154 60 17 80 7 Core Hits 1120 | . 42 16 36 15 . 13 30 35 40 27 . 15 83 38 34 . 185 13 7 38 45 21 8 44 140 . 2 109 23 10 47 4 Critical Kills 8 | . . . 1 . . . 1 . . . . . 1 . 1 . . . . . . . . . . . . . 3 . 1 . Critical Parts Destroyed 4 | . 2 . 1 . . . 1 . . . . . . . . . . . . . . . . . . . . . . . . . Critical Strikes 19 | . 2 . 2 . . . 2 . . . . . 1 . 1 . 2 . . . 1 . . . . . . 2 4 . 2 . Meltdown 6 | . . . . . . . 1 . . . . . 1 . . . . . . . . . . . . . . . 3 . 1 . Destroy 5 | . 2 . 2 . . . . . . . . . . . 1 . . . . . . . . . . . . . . . . . Blast 4 | . . . . . . . . . . . . . . . . . . . . . . . . . . . . 2 1 . 1 . Corrupt 3 | . . . . . . . . . . . . . . . . . 2 . . . 1 . . . . . . . . . . . Smash 1 | . . . . . . . 1 . . . . . . . . . . . . . . . . . . . . . . . . . Melee Attacks 15 | . . . . 4 . . 4 . 2 5 . . . . . . . . . . . . . . . . . . . . . . Impact 15 | . . . . 4 . . 4 . 2 5 . . . . . . . . . . . . . . . . . . . . . . Slashing . | . . . . . . . . . . . . . . . . . . . . . . . . . . . . . . . . . Piercing . | . . . . . . . . . . . . . . . . . . . . . . . . . . . . . . . . . Sneak Attacks 3 | . . . . 1 . . 1 . . 1 . . . . . . . . . . . . . . . . . . . . . . Combat Hostiles . | . . . . . . . . . . . . . . . . . . . . . . . . . . . . . . . . . Follow-up Attacks . | . . . . . . . . . . . . . . . . . . . . . . . . . . . . . . . . . Damage Inflicted 73648 | . 1215 548 1195 733 . 456 1755 1709 1640 1029 . 623 2100 2394 1870 . 6309 1950 925 4786 3666 2330 995 3925 6970 . 78 10830 4825 1215 6806 771 Guns 10051 | . 1207 519 1183 644 . 456 . 214 173 342 . 250 838 893 89 . 1543 . . . . . . . . . . 169 . . 918 613 Cannons 39178 | . . . . . . . 1122 1441 233 . . 216 709 150 . . 657 1950 920 4671 1854 2330 943 2423 2922 . 78 7118 4203 868 4370 . Explosions 23507 | . . . . . . . 510 . 1234 595 . 157 545 1351 1781 . 4109 . . 3 1812 . . 1502 4048 . . 3446 557 347 1510 . Melee 289 | . . . . 79 . . 118 . . 92 . . . . . . . . . . . . . . . . . . . . . . Ramming 623 | . 8 29 12 10 . . 5 54 . . . . 8 . . . . . 5 112 . . 52 . . . . 97 65 . 8 158 Kinetic 10025 | . 1207 519 1183 644 . 456 . 214 173 342 . 250 838 893 89 . 67 . . . . . . . . . . 1249 405 . 1496 . Thermal 39806 | . . . . . . . 1122 1441 61 . . 216 475 167 42 . 1528 1950 920 4671 1471 2330 943 2952 3554 . 78 6553 4355 1146 3831 . Explosive 9872 | . . . . . . . 510 . 1173 308 . 157 . 415 1400 . 4109 . . 3 857 . . . 290 . . 581 . 69 . . Electromagnetic 11502 | . . . . . . . . . 233 287 . . 779 919 339 . 605 . . . 1338 . . 973 3126 . . 2350 . . 553 . Impact 289 | . . . . 79 . . 118 . . 92 . . . . . . . . . . . . . . . . . . . . . . Slashing 1531 | . . . . . . . . . . . . . . . . . . . . . . . . . . . . . . . 918 613 Piercing . | . . . . . . . . . . . . . . . . . . . . . . . . . . . . . . . . . Highest Corruption 65 | . . . . 4 4 4 . 1 10 14 14 14 1 25 65 65 . . . . 41 41 31 5 13 13 . 59 5 2 3 . Average Corruption 12 | . . . . 4 4 4 . 1 6 12 14 14 1 7 38 65 . . . . 28 34 29 3 7 13 . 14 3 1 2 . Corruption Purged 25 | . . . . . . . . . . . . . . . . . . . . . . 20 . . . . . . 5 . . . Corruption Blocked 30 | . . . . . . . . . . 15 . . . . . . . . . . . . . . . . . 15 . . . . Effects 650 | . . . . 33 10 13 . 7 81 75 7 42 4 31 61 18 . . . . 39 44 37 7 34 31 . 38 16 11 11 . Message Errors 162 | . . . . 8 1 1 . 2 23 21 3 11 . 9 14 7 . . . . 8 11 5 1 7 9 . 10 4 2 5 . Matter Fused 152 | . . . . 7 5 4 . 3 19 18 1 10 1 9 18 4 . . . . 7 9 11 1 5 5 . 7 2 2 4 . Heat Flow Errors 82 | . . . . 6 . 3 . 1 2 7 . 3 . 6 3 1 . . . . 4 9 6 2 8 7 . 2 7 5 . . Energy Discharges 72 | . . . . 3 . 1 . 1 13 12 2 2 1 2 9 1 . . . . 7 2 4 1 1 3 . 5 1 1 . . Parts Rejected 4 | . . . . . . . . . . . . 1 1 . 1 . . . . . . . . . 1 . . . . . . . Parts Fused 7 | . . . . . . . . . . . 1 . . 1 . . . . . . 1 1 . . 1 1 . . . . 1 . Data Loss (minor) 82 | . . . . 4 4 1 . . 10 12 . 10 . 2 9 1 . . . . 6 3 2 1 4 4 . 6 2 . 1 . Data Loss (major) 24 | . . . . . . 1 . . 9 1 . 2 1 1 . 3 . . . . 1 . . . 2 2 . 1 . . . . Misfires 28 | . . . . 3 . 2 . . 3 2 . 3 . . 5 1 . . . . 1 2 2 1 1 . . 1 . 1 . . Alerts 13 | . . . . 2 . . . . 2 . . . . . 1 . . . . . 1 . 3 . 2 . . 2 . . . . Misdirections 1 | . . . . . . . . . . . . . . . . . . . . . . . . . . . . 1 . . . . Weapon Failures 23 | . . . . . . . . . . 2 . . . 1 1 . . . . . 3 7 4 . 2 . . 3 . . . . Overload Shots . | . . . . . . . . . . . . . . . . . . . . . . . . . . . . . . . . . Overflow Damage 3375 | . . . . 39 . . 130 46 83 40 . . . 125 45 . 46 126 121 123 58 193 50 152 257 . . 696 199 136 652 58 Projectiles 2418 | . . . . . . . . 46 16 . . . . . . . . 126 121 107 . 193 50 152 247 . . 552 122 95 591 . Explosions 721 | . . . . . . . 60 . 67 18 . . . 125 45 . 46 . . . 58 . . . 10 . . 135 55 41 61 . Melee 236 | . . . . 39 . . 70 . . 22 . . . . . . . . . 16 . . . . . . . 9 22 . . 58 Knockbacks 19 | . . 1 . 2 . . 1 1 . 1 . . 1 . . . . . . . . . 1 . . . . 5 1 . 4 1 Impact 11 | . . 1 . 2 . . 1 1 . 1 . . 1 . . . . . . . . . 1 . . . . 1 1 . . 1 Kinetic 7 | . . . . . . . . . . . . . . . . . . . . . . . . . . . . 3 . . 4 . Secondary 1 | . . . . . . . . . . . . . . . . . . . . . . . . . . . . 1 . . . . Self-Inflicted Damage 2026 | . . . . . . . 34 . 142 27 . . 38 84 181 . 40 . . . 123 . 87 277 527 . . 411 10 . 45 . Shots 109 | . . . . . . . 1 . 4 1 . . 4 4 7 . 1 . . . 3 . 1 11 46 . . 17 1 . 8 . Rammed 22 | . 3 5 1 2 . . 1 5 . . . . 1 . . . . . . . . . 3 . . . . . 1 . . . Targets Rammed 41 | . 4 5 1 2 . . 1 6 . . . . 2 . . . . . 1 3 . . 4 . . . . 3 2 . 1 6 Kicked 15 | . . . . . . . . . . . . . . . . . . . 1 3 . . . . . . . 3 1 . 1 6 Crushed 4 | . 1 . . . . . . 1 . . . . 1 . . . . . . . . . 1 . . . . . . . . . Highest Temperature 484 | . 4 4 12 279 . 200 379 249 204 242 . 213 357 264 111 150 . 17 2 20 324 218 264 296 352 254 69 326 413 159 484 . Average Temperature 93 | . 1 3 5 84 . 61 113 61 78 73 . 67 86 84 51 76 . 10 2 7 164 82 113 110 102 118 38 131 108 76 118 . Received Heat Transfer 5876 | . 195 126 171 183 . 180 207 321 45 138 . . 546 234 90 . 183 165 18 213 135 18 117 231 520 . 9 1318 342 45 63 63 Effects 15 | . . . . . . . 3 . . . . . . . . . . . . . 4 . 3 3 . . . . . . 2 . Energy Bleed 4 | . . . . . . . 3 . . . . . . . . . . . . . 1 . . . . . . . . . . . Interference 10 | . . . . . . . . . . . . . . . . . . . . . 3 . 3 3 . . . . . . 1 . Short Circuit 1 | . . . . . . . . . . . . . . . . . . . . . . . . . . . . . . . 1 . Siege Activations 12 | . . . . . . . . . . . . . . . . . . . . . 2 2 . 1 3 . . . . . 4 . Total Turns 291 | . . . . . . . . . . . . . . . . . . . . . 30 133 . 27 25 . . . . . 76 . Longest Duration 106 | . . . . . . . . . . . . . . . . . . . . . 19 106 . 27 12 . . . . . 28 . Robots Corrupted 47 | . . . . . . . . . 1 . . . 1 3 . . 3 . . . 6 . . 2 15 . . 12 . . 4 . Combat Hostiles 46 | . . . . . . . . . . . . . 1 3 . . 3 . . . 6 . . 2 15 . . 12 . . 4 . Parts Fried 98 | . . . . 1 . . 2 . 2 3 . . 4 12 3 . . . . . 10 . . 6 24 . . 21 . . 9 1 Impact Corruptions 13 | . . . . 1 . . 2 . . 3 . . . . . . . . . 2 . . . . . . . 2 1 . . 2 Robots Melted 8 | . . . . . . . 2 . . . . . 1 . . . . . . 1 . . . . . . . . 3 . 1 . Combat Hostiles 8 | . . . . . . . 2 . . . . . 1 . . . . . . 1 . . . . . . . . 3 . 1 . Parts Melted 39 | . . . . . . . 4 . . . . . 1 . . . 2 4 2 7 . . . 4 1 . 1 4 5 1 3 . Heat Transferred 26175 | . . . . . . . 1776 2220 100 . . 296 703 272 50 . 1774 1075 475 2562 735 1275 525 1725 1925 . 50 3600 2240 665 2132 . Parts Sabotaged 2 | . . . . . . . . . . . . . . . . . . . . . . . . . . . . 2 . . . . Parts Stolen . | . . . . . . . . . . . . . . . . . . . . . . . . . . . . . . . . . Parts Stripped . | . . . . . . . . . . . . . . . . . . . . . . . . . . . . . . . . . Power Chain Reactions 22 | . . . . . . . . . 1 . . . . 1 1 . . . . . 2 . . 6 6 . . 5 . . . . Missiles Intercepted 3 | . . . . . . . . . . . . . . . . . . . . . . . . . . . . . 3 . . . Alert | -11 -10 -10 -9 -9 -9 -8 -8 -7 -7 -7 -7 -6 -6 -6 -6 -6 -6 -5 -5 -5 -5 -5 -5 -4 -4 -4 -3 -3 -2 -2 -2 -1 ------- Run | Jun Mat Min Mat Min Exi Min Mat Fac Low Low Dat Pro Fac Low Low Zio Dee Pro Fac Ext Cet Arc Hub Fac Arm Lab Res Tes Res Qua Sec Acc Peak Influence 1963 | . 301 164 179 95 . 55 446 633 . . . . 383 . . . . . 79 409 677 511 288 632 1536 . 22 1218 691 631 1796 1963 Initial 1104 | . . 64 . . . . 21 202 . . . . . . . . . . . 32 228 270 56 140 303 . . . 684 318 99 1104 Average 244 | . 168 44 76 23 . 34 170 423 . . . . 133 . . . . . 28 65 446 346 100 317 726 . 4 458 372 320 356 1330 Maximum Alert Level 5 | . 1 . . . . . 2 2 . . . . 1 . . . . . . 2 2 2 1 2 4 . . 4 2 2 5 5 Low Security (%) 59 | 100 71 100 100 100 . 100 74 . . . . . 69 . . . . . 100 95 . 4 79 42 . . 100 41 10 28 52 . Level 1 19 | . 28 . . . . . 7 32 . . . . 30 . . . . . . 3 15 69 20 25 38 . . 16 66 43 16 . Level 2 14 | . . . . . . . 17 67 . . . . . . . . . . . 1 84 25 . 32 17 . . 9 23 27 22 . Level 3 2 | . . . . . . . . . . . . . . . . . . . . . . . . . 15 . . 21 . . . . Level 4 2 | . . . . . . . . . . . . . . . . . . . . . . . . . 28 . . 11 . . . 64 Level 5 . | . . . . . . . . . . . . . . . . . . . . . . . . . . . . . . . . . High Security . | . . . . . . . . . . . . . . . . . . . . . . . . . . . . . . . . . Max Security . | . . . . . . . . . . . . . . . . . . . . . . . . . . . . . . . 8 35 Squads Dispatched 116 | . 6 . 2 1 . . 2 4 . . . . 10 . 1 . . 1 1 1 . . 4 2 10 . 3 12 7 3 24 22 Investigation 15 | . 4 . 1 . . . . . . . . . 7 . . . . . . . . . . . . . 1 . . 1 . 1 Extermination 24 | . . . . . . . . 2 . . . . 1 . . . . . 1 . . . 1 2 3 . . 3 5 2 4 . Reinforcement 26 | . 2 . 1 . . . 2 2 . . . . 1 . . . . . . 1 . . 3 . 2 . 2 4 1 . 4 1 Assault 41 | . . . . 1 . . . . . . . . . . 1 . . 1 . . . . . . 5 . . 5 1 . 13 14 Garrison 4 | . . . . . . . . . . . . . 1 . . . . . . . . . . . . . . . . . . 3 Intercept 6 | . . . . . . . . . . . . . . . . . . . . . . . . . . . . . . . 3 3 Searches Triggered . | . . . . . . . . . . . . . . . . . . . . . . . . . . . . . . . . . Data Miner Redirects 9 | . . . . . . . . . . . . . 4 . . . . . . . . . . . 1 . . 1 1 . 1 1 Construction Impeded 3 | . . . . . . . . . . . . . 1 . . . . . . . . . 1 . . . . 1 . . . . Haulers Reinforced . | . . . . . . . . . . . . . . . . . . . . . . . . . . . . . . . . . Active Scanning Responses 1 | . . . . . . . . . . . . . 1 . . . . . . . . . . . . . . . . . . . Cargo Convoy Interrupts 1 | . . . . . . . . . . . . . . . . . . . . . . . . . . . . . 1 . . . Stealth | -11 -10 -10 -9 -9 -9 -8 -8 -7 -7 -7 -7 -6 -6 -6 -6 -6 -6 -5 -5 -5 -5 -5 -5 -4 -4 -4 -3 -3 -2 -2 -2 -1 --------- Run | Jun Mat Min Mat Min Exi Min Mat Fac Low Low Dat Pro Fac Low Low Zio Dee Pro Fac Ext Cet Arc Hub Fac Arm Lab Res Tes Res Qua Sec Acc Distress Signals 25 | . 1 . 2 . . . 1 2 1 . . . . . . . . . . 1 2 . . . 3 . 8 . 1 . . 3 Communications Jammed 125 | . . . . . . . . . . . . . . . . . . . . 47 . . . 3 1 . . 1 15 10 10 38 Distress Signals 118 | . . . . . . . . . . . . . . . . . . . . 47 . . . 3 1 . . 1 14 10 4 38 Times Spotted 699 | . 30 11 21 13 . 5 19 27 13 10 . 5 31 16 16 . 58 12 5 28 33 12 9 27 69 . 8 74 28 7 51 61 Peak Tracking Total 48 | . 4 3 5 5 . 3 4 6 7 3 . 4 7 4 7 . 35 5 1 5 8 1 3 6 9 . 2 6 7 2 19 48 Tactical Retreats 34 | . 2 1 . 1 . . 1 . . 1 . . 4 2 . . . . . 2 1 . 1 . 3 . . 3 1 1 6 4 Traps | -11 -10 -10 -9 -9 -9 -8 -8 -7 -7 -7 -7 -6 -6 -6 -6 -6 -6 -5 -5 -5 -5 -5 -5 -4 -4 -4 -3 -3 -2 -2 -2 -1 ------- Run | Jun Mat Min Mat Min Exi Min Mat Fac Low Low Dat Pro Fac Low Low Zio Dee Pro Fac Ext Cet Arc Hub Fac Arm Lab Res Tes Res Qua Sec Acc Traps Triggered 35 | . 3 . . . . . . 4 . 1 . . . . . . . . 1 2 . . 1 1 5 . 1 3 4 2 . 7 Indirectly 5 | . . . . . . . . . . . . . . . . . . . . . . . . 1 4 . . . . . . . Trap Hack Attempts . | . . . . . . . . . . . . . . . . . . . . . . . . . . . . . . . . . Triggered . | . . . . . . . . . . . . . . . . . . . . . . . . . . . . . . . . . Disarmed . | . . . . . . . . . . . . . . . . . . . . . . . . . . . . . . . . . Reprogrammed . | . . . . . . . . . . . . . . . . . . . . . . . . . . . . . . . . . Reused 5 | . . . . . . . . . . . . . . . . . 5 . . . . . . . . . . . . . . . Traps Extracted 1 | . . . . . . . . . 1 . . . . . . . . . . . . . . . . . . . . . . . Installed 11 | . . . . . . . . . . . . . . . . . 11 . . . . . . . . . . . . . . . Triggered 5 | . . . . . . . . . . 1 . . . . . . . . . . . . . . 1 . . . 3 . . . Most Traps Carried 11 | . . . . . . . . . 4 11 11 11 11 11 11 11 11 . . . . . . . . . . . . . . . Machines | -11 -10 -10 -9 -9 -9 -8 -8 -7 -7 -7 -7 -6 -6 -6 -6 -6 -6 -5 -5 -5 -5 -5 -5 -4 -4 -4 -3 -3 -2 -2 -2 -1 ---------- Run | Jun Mat Min Mat Min Exi Min Mat Fac Low Low Dat Pro Fac Low Low Zio Dee Pro Fac Ext Cet Arc Hub Fac Arm Lab Res Tes Res Qua Sec Acc Machines Disabled 79 | . . 1 . . . 1 3 4 1 1 . . 2 . 1 . 5 . 1 3 1 3 4 5 8 5 . 10 4 2 12 2 Max in Single Turn 4 | . . 1 . . . 1 1 1 1 1 . . 1 . 1 . 1 . 1 1 1 1 4 1 1 1 . 1 1 1 2 1 Garrison Access 4 | . . . . . . . . . . . . . . . . . . . . . . . . . . . . 1 2 1 . . Network Hub 1 | . . . . . . . . . . . . . . . . . . . . . . . 1 . . . . . . . . . Machines Repaired . | . . . . . . . . . . . . . . . . . . . . . . . . . . . . . . . . . Machines Sabotaged . | . . . . . . . . . . . . . . . . . . . . . . . . . . . . . . . . . Overloaded Fab Kills . | . . . . . . . . . . . . . . . . . . . . . . . . . . . . . . . . . Hacking | -11 -10 -10 -9 -9 -9 -8 -8 -7 -7 -7 -7 -6 -6 -6 -6 -6 -6 -5 -5 -5 -5 -5 -5 -4 -4 -4 -3 -3 -2 -2 -2 -1 --------- Run | Jun Mat Min Mat Min Exi Min Mat Fac Low Low Dat Pro Fac Low Low Zio Dee Pro Fac Ext Cet Arc Hub Fac Arm Lab Res Tes Res Qua Sec Acc Machines Accessed 48 | . 8 . 4 . 1 . 2 5 2 . 4 . 8 . 1 . . . . 3 . . . . 2 . . 1 3 1 3 . Terminals 23 | . 6 . 3 . . . 2 3 . . . . 1 . . . . . . 3 . . . . 1 . . . 1 . 3 . Fabricators 7 | . . . . . . . . 2 . . . . 4 . . . . . . . . . . . 1 . . . . . . . Repair Stations 1 | . . . . . . . . . . . . . 1 . . . . . . . . . . . . . . . . . . . Recycling Units 5 | . 2 . 1 . . . . . . . . . 2 . . . . . . . . . . . . . . . . . . . Scanalyzers . | . . . . . . . . . . . . . . . . . . . . . . . . . . . . . . . . . Garrison Access 4 | . . . . . . . . . . . . . . . . . . . . . . . . . . . . 1 2 1 . . Total Hacks 117 | . 16 . 10 . 1 . 5 11 2 . 28 . 17 . 1 . . . . 6 . . . . 6 . . 2 5 3 4 . Successful 82 | . 8 . 8 . 1 . 3 2 2 . 28 . 13 . 1 . . . . 4 . . . . 5 . . . 3 1 3 . Failed 35 | . 8 . 2 . . . 2 9 . . . . 4 . . . . . . 2 . . . . 1 . . 2 2 2 1 . Catastrophic 13 | . 3 . . . . . . 5 . . . . 2 . . . . . . . . . . . . . . 1 . 2 . . Database Lockouts . | . . . . . . . . . . . . . . . . . . . . . . . . . . . . . . . . . Manual 58 | . 16 . 10 . . . 5 7 . . . . 8 . . 4 . . . 5 . . . . . . . 2 . 1 . . Terminals 51 | . 14 . 9 . . . 5 7 . . . . 2 . . . . . . 6 . . . . 2 . . . 2 . 4 . Fabricators 19 | . . . . . . . . 4 . . . . 11 . . . . . . . . . . . 4 . . . . . . . Repair Stations 2 | . . . . . . . . . . . . . 2 . . . . . . . . . . . . . . . . . . . Recycling Units 5 | . 2 . 1 . . . . . . . . . 2 . . . . . . . . . . . . . . . . . . . Scanalyzers . | . . . . . . . . . . . . . . . . . . . . . . . . . . . . . . . . . Garrison Access 8 | . . . . . . . . . . . . . . . . . . . . . . . . . . . . 2 3 3 . . Terminal Hacks 47 | . 2 . 4 . 1 . 1 . 2 . 28 . . . 1 . . . . 3 . . . . 1 . . . 1 . 3 . Record 13 | . . . . . 1 . . . . . 11 . . . . . . . . 1 . . . . . . . . . . . . Part Schematic 11 | . . . 1 . . . . . . . 10 . . . . . . . . . . . . . . . . . . . . . Robot Schematic 5 | . . . . . . . . . . . 5 . . . . . . . . . . . . . . . . . . . . . Robot Analysis 1 | . . . 1 . . . . . . . . . . . . . . . . . . . . . . . . . . . . . Prototype ID Bank 3 | . . . 1 . . . . . . . 2 . . . . . . . . . . . . . . . . . . . . . Open Door 7 | . . . . . . . . . 2 . . . . . 1 . . . . . . . . . 1 . . . 1 . 2 . Terminal Index 3 | . 1 . 1 . . . 1 . . . . . . . . . . . . . . . . . . . . . . . . . Alert Level 1 | . . . . . . . . . . . . . . . . . . . . 1 . . . . . . . . . . . . Unreport Threat 1 | . . . . . . . . . . . . . . . . . . . . 1 . . . . . . . . . . . . Recall Investigation 1 | . 1 . . . . . . . . . . . . . . . . . . . . . . . . . . . . . . . Activate Exoskeleton 1 | . . . . . . . . . . . . . . . . . . . . . . . . . . . . . . . 1 . Fabricator Hacks 13 | . . . . . . . . 2 . . . . 7 . . . . . . . . . . . 4 . . . . . . . Network Status 2 | . . . . . . . . 1 . . . . 1 . . . . . . . . . . . . . . . . . . . Load Schematic 6 | . . . . . . . . . . . . . 4 . . . . . . . . . . . 2 . . . . . . . Build 5 | . . . . . . . . 1 . . . . 2 . . . . . . . . . . . 2 . . . . . . . Repair Station Hacks 2 | . . . . . . . . . . . . . 2 . . . . . . . . . . . . . . . . . . . Scan Component 1 | . . . . . . . . . . . . . 1 . . . . . . . . . . . . . . . . . . . Repair 1 | . . . . . . . . . . . . . 1 . . . . . . . . . . . . . . . . . . . Recycling Unit Hacks . | . . . . . . . . . . . . . . . . . . . . . . . . . . . . . . . . . Scanalyzer . | . . . . . . . . . . . . . . . . . . . . . . . . . . . . . . . . . Garrison Access Hacks 2 | . . . . . . . . . . . . . . . . . . . . . . . . . . . . . 2 . . . Seal Access 2 | . . . . . . . . . . . . . . . . . . . . . . . . . . . . . 2 . . . Unauthorized Hacks 18 | . 6 . 4 . . . 2 . . . . . 4 . . . . . . 1 . . . . . . . . . 1 . . Terminals 10 | . 4 . 3 . . . 2 . . . . . . . . . . . . 1 . . . . . . . . . . . . Assimilate 1 | . 1 . . . . . . . . . . . . . . . . . . . . . . . . . . . . . . . Botnet 6 | . 2 . 2 . . . 1 . . . . . . . . . . . . 1 . . . . . . . . . . . . Operators 3 | . 1 . 1 . . . 1 . . . . . . . . . . . . . . . . . . . . . . . . . Fabricators 2 | . . . . . . . . . . . . . 2 . . . . . . . . . . . . . . . . . . . Recompile 2 | . . . . . . . . . . . . . 2 . . . . . . . . . . . . . . . . . . . Repair Stations . | . . . . . . . . . . . . . . . . . . . . . . . . . . . . . . . . . Recycling Units 5 | . 2 . 1 . . . . . . . . . 2 . . . . . . . . . . . . . . . . . . . Tunnel 5 | . 2 . 1 . . . . . . . . . 2 . . . . . . . . . . . . . . . . . . . Scanalyzers . | . . . . . . . . . . . . . . . . . . . . . . . . . . . . . . . . . Garrison Access 1 | . . . . . . . . . . . . . . . . . . . . . . . . . . . . . . 1 . . Jam 1 | . . . . . . . . . . . . . . . . . . . . . . . . . . . . . . 1 . . Data Cores Recovered 4 | . . . . . . . . . . . . . . . . . . . . 1 . . . . . . 1 1 . . 1 . Used . | . . . . . . . . . . . . . . . . . . . . . . . . . . . . . . . . . Hacking Detections 26 | . 6 . 3 . . . 1 5 . . . . 5 . . . . . . 3 . . . . . . . 1 1 1 . . Full Trace Events 3 | . 1 . . . . . . . . . . . 2 . . . . . . . . . . . . . . . . . . . Feedback Events . | . . . . . . . . . . . . . . . . . . . . . . . . . . . . . . . . . Feedback Blocked . | . . . . . . . . . . . . . . . . . . . . . . . . . . . . . . . . . Robot Schematics Acquired 10 | . . . . . . . . . . . 5 . . . . 2 . . . . . . . . . . . 2 . . 1 . Robots Built 2 | . . . . . . . . 2 . . . . . . . . . . . . . . . . . . . . . . . . Authchips . | . . . . . . . . . . . . . . . . . . . . . . . . . . . . . . . . . Time 134 | . . . . . . . . 134 . . . . . . . . . . . . . . . . . . . . . . . . Total Robot Build Rating 8 | . . . . . . . . 8 . . . . . . . . . . . . . . . . . . . . . . . . Part Schematics Acquired 31 | . . . 1 . . . . . . . 10 . . . . 15 . . . . . . . . . . . 4 . . 1 . Parts Built 4 | . . . . . . . . . . . . . 2 . . . . . . . . . . . 2 . . . . . . . Authchips 3 | . . . . . . . . . . . . . 1 . . . . . . . . . . . 2 . . . . . . . Time 317 | . . . . . . . . . . . . . 208 . . . . . . . . . . . 109 . . . . . . . Total Part Build Rating 18 | . . . . . . . . . . . . . 11 . . . . . . . . . . . 7 . . . . . . . Parts Repaired 1 | . . . . . . . . . . . . . 1 . . . . . . . . . . . . . . . . . . . Time 38 | . . . . . . . . . . . . . 38 . . . . . . . . . . . . . . . . . . . Parts Recycled . | . . . . . . . . . . . . . . . . . . . . . . . . . . . . . . . . . Recycled Matter . | . . . . . . . . . . . . . . . . . . . . . . . . . . . . . . . . . Retrieved Matter . | . . . . . . . . . . . . . . . . . . . . . . . . . . . . . . . . . Retrieved Components . | . . . . . . . . . . . . . . . . . . . . . . . . . . . . . . . . . Parts Scanalyzed . | . . . . . . . . . . . . . . . . . . . . . . . . . . . . . . . . . Part Schematics Acquired . | . . . . . . . . . . . . . . . . . . . . . . . . . . . . . . . . . Parts Damaged . | . . . . . . . . . . . . . . . . . . . . . . . . . . . . . . . . . Bothacking | -11 -10 -10 -9 -9 -9 -8 -8 -7 -7 -7 -7 -6 -6 -6 -6 -6 -6 -5 -5 -5 -5 -5 -5 -4 -4 -4 -3 -3 -2 -2 -2 -1 ------------ Run | Jun Mat Min Mat Min Exi Min Mat Fac Low Low Dat Pro Fac Low Low Zio Dee Pro Fac Ext Cet Arc Hub Fac Arm Lab Res Tes Res Qua Sec Acc Used RIF Installer . | . . . . . . . . . . . . . . . . . . . . . . . . . . . . . . . . . Robots Hacked . | . . . . . . . . . . . . . . . . . . . . . . . . . . . . . . . . . Non-combat . | . . . . . . . . . . . . . . . . . . . . . . . . . . . . . . . . . Combat . | . . . . . . . . . . . . . . . . . . . . . . . . . . . . . . . . . Robot Hacks Applied . | . . . . . . . . . . . . . . . . . . . . . . . . . . . . . . . . . Relay Couplers Released 5 | . . . . . . . . . . . . . . . . . . . . . . . . . . . . 3 2 . . . Machine Destruction 5 | . . . . . . . . . . . . . . . . . . . . . . . . . . . . 3 2 . . . Fabnet Peak Effective % . | . . . . . . . . . . . . . . . . . . . . . . . . . . . . . . . . . Robots Rewired 16 | . . . . . . . . . 2 . . . . . 1 . . . . 13 . . . . . . . . . . . . Allies Hacked . | . . . . . . . . . . . . . . . . . . . . . . . . . . . . . . . . . Hacks Repelled . | . . . . . . . . . . . . . . . . . . . . . . . . . . . . . . . . . Allies | -11 -10 -10 -9 -9 -9 -8 -8 -7 -7 -7 -7 -6 -6 -6 -6 -6 -6 -5 -5 -5 -5 -5 -5 -4 -4 -4 -3 -3 -2 -2 -2 -1 -------- Run | Jun Mat Min Mat Min Exi Min Mat Fac Low Low Dat Pro Fac Low Low Zio Dee Pro Fac Ext Cet Arc Hub Fac Arm Lab Res Tes Res Qua Sec Acc Total Allies 58 | . 1 . . 2 . . . 2 2 . . 1 . . 1 . 1 . 1 15 . . . . . . . . . . 2 30 Largest Group 12 | . 1 1 1 1 1 1 . 2 2 2 . 1 . . 1 1 2 . 1 12 10 . . . . . . . . . 1 10 Highest-Rated Group 490 | . 10 10 10 31 31 31 . 64 62 62 . 96 . . 29 29 148 . 26 490 412 . . . . . . . . . 83 379 Highest-Rated Ally 219 | . 10 10 10 31 31 31 . 32 32 32 . 96 . . 29 29 119 . 26 159 159 . . . . . . . . . 83 219 Total Orders 64 | . . 2 8 . . . . . 3 . . . . . . . 4 . 2 12 4 . . . 4 . . 9 4 5 7 . STAY 14 | . . 1 4 . . . . . 1 . . . . . . . . . . 4 2 . . . . . . . . . 2 . ROAM 1 | . . . . . . . . . 1 . . . . . . . . . . . . . . . . . . . . . . . FOLLOW 11 | . . 1 4 . . . . . 1 . . . . . . . . . . 3 2 . . . . . . . . . . . RETURN 38 | . . . . . . . . . . . . . . . . . 4 . 2 5 . . . . 4 . . 9 4 5 5 . Ally Attacks 432 | . . . . 17 . 4 . 26 3 6 . 14 . . . . 98 . . 48 28 . . . 37 . . 78 . . . 73 Total Damage 12769 | . . . . 231 . 42 . 1323 62 254 . 657 . . . . 4525 . . 818 824 . . . 809 . . 1296 . . . 1928 Kills 74 | . . . . 6 . . . 12 1 2 . . . . . . 21 . . 10 5 . . . 6 . . 6 . . . 5 Allies Corrupted 1 | . . . . . . . . . . . . . . . . . . . . . . . . . 1 . . . . . . . Allies Melted . | . . . . . . . . . . . . . . . . . . . . . . . . . . . . . . . . . Field Lobotomies 2 | . . . . . . . . . . . . . . . . . . . . . . . . . . . . . . . . 2 Intel | -11 -10 -10 -9 -9 -9 -8 -8 -7 -7 -7 -7 -6 -6 -6 -6 -6 -6 -5 -5 -5 -5 -5 -5 -4 -4 -4 -3 -3 -2 -2 -2 -1 ------- Run | Jun Mat Min Mat Min Exi Min Mat Fac Low Low Dat Pro Fac Low Low Zio Dee Pro Fac Ext Cet Arc Hub Fac Arm Lab Res Tes Res Qua Sec Acc Robot Analysis Total 1 | . . . 1 . . . . . . . . . . . . . . . . . . . . . . . . . . . . . Derelict Logs Recovered 14 | . . 2 . 1 . . . . 2 2 . 1 . 2 1 1 . 2 . . . . . . . . . . . . . . Drone Launches 45 | . . . . . . . . . . . . . . . . . 6 . 2 5 . . . . 5 . . 13 4 5 5 . Drone Recoveries 43 | . . . . . . . . . . . . . . . . . 6 . 2 5 . . . . 4 . . 12 4 5 5 . Decoded 0b10 Intel 3 | . . . . . . . . . . . . . . . . . . . . 3 . . . . . . . . . . . . Traps 2 | . . . . . . . . . . . . . . . . . . . . 2 . . . . . . . . . . . . Exits 1 | . . . . . . . . . . . . . . . . . . . . 1 . . . . . . . . . . . . Exploration | -11 -10 -10 -9 -9 -9 -8 -8 -7 -7 -7 -7 -6 -6 -6 -6 -6 -6 -5 -5 -5 -5 -5 -5 -4 -4 -4 -3 -3 -2 -2 -2 -1 ------------- Run | Jun Mat Min Mat Min Exi Min Mat Fac Low Low Dat Pro Fac Low Low Zio Dee Pro Fac Ext Cet Arc Hub Fac Arm Lab Res Tes Res Qua Sec Acc Turns Passed 47853 | 3 1504 1631 1622 2282 411 765 735 1739 3377 1982 216 1082 1464 1497 1292 2528 4895 937 924 2686 770 839 751 932 1196 913 1234 2253 2143 1123 1724 403 Spaces Moved 18186 | 1 713 646 500 548 129 215 239 604 1324 757 88 424 429 542 474 1016 2045 361 396 1070 239 112 251 344 376 178 502 903 778 319 889 774 Core 24 | . . . . . . . . . . . . . . . . . 24 . . . . . . . . . . . . . . . Treads 11346 | 1 713 646 500 548 129 215 239 604 1324 757 88 424 429 542 474 1016 . . . . 206 104 251 344 376 178 45 . 337 319 537 . Legs 5439 | . . . . . . . . . . . . . . . . . 644 361 396 1070 33 8 . . . . 457 903 441 . 352 774 Wheels 1377 | . . . . . . . . . . . . . . . . . 1377 . . . . . . . . . . . . . . . Hover . | . . . . . . . . . . . . . . . . . . . . . . . . . . . . . . . . . Flight . | . . . . . . . . . . . . . . . . . . . . . . . . . . . . . . . . . Fastest Speed 30 | 160 160 240 240 320 320 320 232 228 245 245 245 245 166 170 246 246 126 198 198 195 160 240 160 160 160 240 184 180 186 170 30 30 Average Speed 213 | 160 165 240 277 320 320 320 232 240 245 245 245 245 238 244 248 246 187 198 198 198 230 244 239 160 185 240 228 182 231 231 145 30 Slowest Speed 2550 | 160 240 240 320 320 320 320 232 247 245 245 245 245 250 250 250 246 2550 198 198 202 240 300 240 160 240 240 330 250 390 253 253 30 Overloaded Moves . | . . . . . . . . . . . . . . . . . . . . . . . . . . . . . . . . . Propulsion Burnouts . | . . . . . . . . . . . . . . . . . . . . . . . . . . . . . . . . . Robots Hopped . | . . . . . . . . . . . . . . . . . . . . . . . . . . . . . . . . . Cave-ins Triggered 1 | . . . . 1 . . . . . . . . . . . . . . . . . . . . . . . . . . . . Exploration Rate (%) 56 | 2 92 101 54 94 48 60 28 25 85 84 68 62 16 66 60 79 93 58 15 89 66 80 21 11 51 83 24 95 23 54 59 23 Regions Visited 32 Branch Regions 22 Pre-discovered Areas 10 | . 2 1 1 . 1 . . . . 1 1 . 2 . . 1 . . . . . . . . . . . . . . . . Known Exits Taken 19 | . . . . . . . . 1 1 1 1 1 1 . . 1 . . . 1 1 1 1 1 1 1 1 1 1 1 1 . Unknown Exits Taken 13 | 1 1 1 1 1 1 1 1 . . . . . . 1 1 . 1 1 1 . . . . . . . . . . . . . Scrap Searched 17 | . . 1 . 1 . 1 . . 1 2 . 2 . 1 2 4 . 2 . . . . . . . . . . . . . . Spaces Dug 270 | . . . . 2 . . . . 2 2 . . . 37 31 . 11 4 17 25 . 4 6 7 22 . 2 11 20 24 18 25 Terrain Destroyed 1356 | . . . 12 2 . . 77 . 75 26 . 18 . 47 93 . 50 13 32 52 28 15 193 77 116 . 3 126 145 52 59 45 Melee 6 | . . . . 2 . . . . 2 2 . . . . . . . . . . . . . . . . . . . . . . Projectile 484 | . . . . . . . 11 . . . . . . . . . 50 13 32 18 4 15 33 37 72 . 3 47 35 27 42 45 AOE 866 | . . . 12 . . . 66 . 73 24 . 18 . 47 93 . . . . 34 24 . 160 40 44 . . 79 110 25 17 . Terrain Rammed . | . . . . . . . . . . . . . . . . . . . . . . . . . . . . . . . . . Walls Destroyed . | . . . . . . . . . . . . . . . . . . . . . . . . . . . . . . . . . Machines Disabled . | . . . . . . . . . . . . . . . . . . . . . . . . . . . . . . . . . Actions | -11 -10 -10 -9 -9 -9 -8 -8 -7 -7 -7 -7 -6 -6 -6 -6 -6 -6 -5 -5 -5 -5 -5 -5 -4 -4 -4 -3 -3 -2 -2 -2 -1 --------- Run | Jun Mat Min Mat Min Exi Min Mat Fac Low Low Dat Pro Fac Low Low Zio Dee Pro Fac Ext Cet Arc Hub Fac Arm Lab Res Tes Res Qua Sec Acc Total 25006 | 4 927 677 641 1007 130 247 333 772 1412 834 89 446 764 641 563 1049 2944 526 491 1523 386 618 348 631 708 641 585 1308 1014 655 1182 910 Wait 4135 | . 119 2 26 412 . . 16 53 18 21 . . 228 11 25 . 619 129 42 192 61 456 62 209 171 402 47 203 99 292 136 84 Move 18153 | . 712 645 499 546 128 214 238 603 1323 756 87 423 428 541 473 1015 2044 360 395 1069 238 111 250 343 375 177 501 902 777 318 889 773 Hop . | . . . . . . . . . . . . . . . . . . . . . . . . . . . . . . . . . Pick Up 236 | . 15 . 30 2 . 2 14 11 2 4 . 2 9 11 10 9 45 1 3 3 7 . . 2 6 5 2 12 17 2 10 . Fast Attach 148 | . 7 . 5 . . . . 11 3 4 1 2 8 5 2 4 16 . 3 4 5 7 1 1 8 3 7 13 3 1 16 8 Attach 147 | 2 1 3 9 4 . 7 8 10 3 4 . 2 11 7 11 5 10 . 1 2 2 2 . 2 6 2 1 12 12 1 6 1 Detach 170 | . . . 1 . 2 . . . 1 2 . . 2 2 1 7 14 3 5 10 6 9 2 10 13 17 9 16 16 7 11 4 Swap 212 | . 2 . 2 4 . 1 8 . 15 14 . 2 12 11 9 1 25 3 6 20 5 . . 5 19 . 4 16 11 6 10 1 Drop 234 | 2 10 . 17 . . . 4 20 4 2 1 3 11 1 6 7 62 1 5 5 12 3 1 1 2 3 6 14 12 . 13 6 Fire 1318 | . 57 22 51 32 . 23 40 58 30 22 . 12 53 52 24 1 98 29 30 54 50 30 28 58 106 32 3 116 65 24 91 27 Melee 15 | . . . . 4 . . 4 . 2 5 . . . . . . . . . . . . . . . . . . . . . . Ram . | . . . . . . . . . . . . . . . . . . . . . . . . . . . . . . . . . Kick 14 | . . . . . . . . . . . . . . . . . . . 1 3 . . . . . . . 3 1 . . 6 Crush 26 | . 4 5 1 2 . . 1 6 . . . . 2 . . . . . . . . . 4 . . . . . 1 . . . Escape Stasis 22 | . . . . 1 . . . . . . . . . . . . . . . 10 . . . . 2 . 5 . . 4 . . Rewire 164 | . . . . . . . . . 11 . . . . . 2 . . . . 151 . . . . . . . . . . . . Trap 11 | . . . . . . . . . . . . . . . . . 11 . . . . . . . . . . . . . . . Miscellaneous 1 | . . . . . . . . . . . . . . . . . . . . . . . . . . . . 1 . . . . Route ------- -11/Junkyard -10/Materials (discovered 4 exits: *Mat x2 / [*Min x2]) -10/Mines (discovered 2 exits: *Mat x2) -9/Materials (discovered 3 exits: [*Min x2] / [*Sto]) -9/Mines (discovered 3 exits: *Mat x2 / *Exi) -9/Exiles -8/Mines -8/Materials -7/Factory (discovered 3 exits: *Fac x2 / *Low) -7/Lower Caves -7/Lower Caves (discovered 2 exits: *Fac / *Dat) -7/Data Miner -6/Proximity Caves -6/Factory -6/Lower Caves -6/Lower Caves (discovered 2 exits: [*Fac] / *Zio) -6/Zion (discovered 2 exits: *Dee / [*Pro]) -6/Deep Caves -5/Proximity Caves -5/Factory (discovered 3 exits: Fac / Upp / *Ext) -5/Extension (discovered 3 exits: *Fac x2 / *Cet) -5/Cetus (discovered 2 exits: *Fac / *Arc) -5/Archives (discovered 3 exits: *Fac / *Hub x2) -5/Hub_04(d) -4/Factory (discovered 2 exits: *Upp / *Arm) -4/Armory (discovered 3 exits: *Res x2 / *Lab) -4/Lab -3/Research (discovered 2 exits: *Res / *Tes) -3/Testing -2/Research (discovered 5 exits: *Acc x3 / *Qua x2) -2/Quarantine (discovered 2 exits: Acc / *Sec) -2/Section 7 -1/Access To Fleet Rendezvous History --------- Turn | Location | Event 4 | -11/Junkyard | Discovered new exit (range 0) 4 | -11/Junkyard | Entered Materials 305 | -10/Materials | Discovered new exit (range 10) 309 | -10/Materials | Build established: Mutant 698 | -10/Materials | Discovered new exit (range 12) 1186 | -10/Materials | Discovered new exit (range 14) 1255 | -10/Materials | Discovered new exit (range 12) 1508 | -10/Materials | Entered Mines 1508 | -10/Mines | Accompanied by 1 ally 1523 | -10/Mines | Learned Materials terminal intel 1680 | -10/Mines | Learned location of Storage (-9) 1969 | -10/Mines | Discovered new exit (range 7) 2897 | -10/Mines | Core integrity fell below 50% 3085 | -10/Mines | Discovered new exit (range 5) 3139 | -10/Mines | Entered Materials 3139 | -9/Materials | Accompanied by 1 ally 3139 | -9/Materials | Evolved 2 slots: Utility x2 3140 | -9/Materials | Loaded intel: 12 terminal locations 3295 | -9/Materials | Discovered new exit (range 9) 3825 | -9/Materials | Discovered new exit (range 6) 4179 | -9/Materials | Discovered new exit (range 10) 4761 | -9/Materials | Entered Mines 4762 | -9/Mines | Assembled infested the area 4764 | -9/Mines | Received a Mining Laser from a helpful Derelict 4768 | -9/Mines | Assisted by a Guerilla fighting off Assembled 4797 | -9/Mines | Met a Derelict bent on vengeance 5425 | -9/Mines | Deemed a non-threat by the Exiles lab entrance 5425 | -9/Mines | Discovered new exit (range 5) 5713 | -9/Mines | Crushed by falling debris 5714 | -9/Mines | Core integrity fell below 50% 6402 | -9/Mines | Discovered new exit (range 11) 6600 | -9/Mines | Learned Materials trap positions 6643 | -9/Mines | Met a Derelict testing a Signal Generator 6651 | -9/Mines | Discovered new exit (range 8) 7043 | -9/Mines | Entered Exiles 7043 | -9/Exiles | Accompanied by 1 ally 7124 | -9/Exiles | Met 8R-AWN 7182 | -9/Exiles | Met EX-HEX 7329 | -9/Exiles | Learned location of Zion (-6) 7428 | -9/Exiles | Discovered new exit (range 10) 7454 | -9/Exiles | Entered Mines 7454 | -8/Mines | Accompanied by 1 ally 7883 | -8/Mines | Core integrity fell below 20% 7939 | -8/Mines | Lost 4 parts (2u2w) 8200 | -8/Mines | Discovered new exit (range 5) 8219 | -8/Mines | Entered Materials 8219 | -8/Materials | Evolved 2 slots: Propulsion x2 8220 | -8/Materials | Loaded intel: 20 trap records 8912 | -8/Materials | Discovered new exit (range 4) 8941 | -8/Materials | Found Prototype Device 8954 | -8/Materials | Entered Factory 8954 | -7/Factory | Evolved 2 slots: Utility x2 9163 | -7/Factory | Fabricated Y-54 Guardian (x2) 9716 | -7/Factory | Build established: Scavenger-Mutant 9742 | -7/Factory | Discovered new exit (range 9) 9756 | -7/Factory | Identified exit to Factory 10225 | -7/Factory | Discovered exit to Factory (range 13) 10678 | -7/Factory | Discovered new exit (range 6) 10690 | -7/Factory | Identified exit to Lower Caves 10693 | -7/Factory | Entered Lower Caves 11083 | -7/Lower Caves | Attracted the attention of an 0b10 outpost 11115 | -7/Lower Caves | Destroyed 7 combat bots 11585 | -7/Lower Caves | Learned Factory stockpile data 11938 | -7/Lower Caves | System corruption reached 10% 12733 | -7/Lower Caves | Discovered new exit (range 14) 12912 | -7/Lower Caves | Identified exit to Lower Caves 13196 | -7/Lower Caves | Learned location of 1 exit from Factory 14070 | -7/Lower Caves | Entered another Lower Caves area 14070 | -7/Lower Caves | Accompanied by 2 allies 14071 | -7/Lower Caves | Encountered a Warlord checkpoint 14135 | -7/Lower Caves | Discovered exit to Factory (range 10) 14447 | -7/Lower Caves | Attracted the attention of an 0b10 checkpoint 15305 | -7/Lower Caves | Learned location of Extension (-5) 15484 | -7/Lower Caves | Learned Factory trap positions 15545 | -7/Lower Caves | Found Alien Artifact 15545 | -7/Lower Caves | Identified Core Expander 15545 | -7/Lower Caves | Installed Core Expander, added new Utility slot 15742 | -7/Lower Caves | Build established: Trapper-Mutant 15761 | -7/Lower Caves | Discovered new exit (range 13) 16049 | -7/Lower Caves | Identified exit to Data Miner 16052 | -7/Lower Caves | Entered Data Miner 16053 | -7/Data Miner | Discovered new exit (range 6) 16100 | -7/Data Miner | Met Data Miner 16161 | -7/Data Miner | Learned location of Section 7 (-2) 16161 | -7/Data Miner | Acquired the access code to Warlord's prototype stash 16183 | -7/Data Miner | Received God Mode back door access code from Data Miner 16234 | -7/Data Miner | Identified exit to Proximity Caves 16268 | -7/Data Miner | Entered Proximity Caves 16805 | -6/Proximity Caves | Escorted by Enhanced Grunt 16842 | -6/Proximity Caves | Spotted B-75 Beast 16880 | -6/Proximity Caves | Destroyed B-75 Beast 17138 | -6/Proximity Caves | Learned Factory garrison access intel 17341 | -6/Proximity Caves | Discovered exit to Factory (range 5) 17350 | -6/Proximity Caves | Entered Factory 17350 | -6/Factory | Evolved 2 slots: Power x1, Propulsion x1 17351 | -6/Factory | Identified exit to Lower Caves 17352 | -6/Factory | Loaded intel: 81 trap records 17354 | -6/Factory | Loaded intel: 3 garrison access locations 17418 | -6/Factory | Repaired Hvy. Particle Cannon 17518 | -6/Factory | Identified Active Sensor Suite 17616 | -6/Factory | Incoming investigation squad redirected 17641 | -6/Factory | Incoming investigation squad redirected 17785 | -6/Factory | Build established: Trapper-Skirmisher 18032 | -6/Factory | Fabricated Combat Drone Bay? 18187 | -6/Factory | Incoming investigation squad redirected 18323 | -6/Factory | Fabricated Exp. Targeting Computer (x1) 18627 | -6/Factory | Incoming investigation squad redirected 18677 | -6/Factory | Lost 4 parts (2n2u) 18763 | -6/Factory | Garrison activated, responded to threat 18814 | -6/Factory | Entered Lower Caves 18862 | -6/Lower Caves | Build established: Trapper-Mutant 19502 | -6/Lower Caves | Learned location of 1 exit from Factory 19855 | -6/Lower Caves | System corruption reached 10% 19878 | -6/Lower Caves | Spotted B-75 Beast 19988 | -6/Lower Caves | Destroyed B-75 Beast 20023 | -6/Lower Caves | Lost 6 parts (1p2n2u1w) 20215 | -6/Lower Caves | Discovered new exit (range 15) 20311 | -6/Lower Caves | Entered another Lower Caves area 20412 | -6/Lower Caves | Learned Factory stockpile data 20421 | -6/Lower Caves | Discovered new exit (range 13) 21028 | -6/Lower Caves | Attracted the attention of an 0b10 checkpoint 21190 | -6/Lower Caves | System corruption reached 30% 21513 | -6/Lower Caves | Attracted the attention of an 0b10 outpost 21549 | -6/Lower Caves | Destroyed 8 combat bots 21567 | -6/Lower Caves | Discovered new exit (range 14) 21603 | -6/Lower Caves | Entered Zion 21603 | -6/Zion | Accompanied by 1 ally 21717 | -6/Zion | Discovered new exit (range 16) 21736 | -6/Zion | Given the Hacking Drone Bay 21741 | -6/Zion | Found Prototype Device 21902 | -6/Zion | System corruption cleaned by Quarantine Array 22148 | -6/Zion | Acquired unknown access codes intercepted by a Zionite 22347 | -6/Zion | Found GAL Module 23476 | -6/Zion | Opened final containment barrier to the Deep Caves 24116 | -6/Zion | Discovered new exit (range 5) 24121 | -6/Zion | Saw the warning signs outside the Deep Caves entrance 24128 | -6/Zion | Identified exit to Deep Caves 24131 | -6/Zion | Entered Deep Caves 24131 | -6/Deep Caves | Accompanied by 1 ally 24133 | -6/Deep Caves | Met 5H-AD0 24637 | -6/Deep Caves | Attacked by Z-Imprinter 24643 | -6/Deep Caves | Destroyed Z-Imprinter 24701 | -6/Deep Caves | Z-Facility disabled 24744 | -6/Deep Caves | Build established: Scavenger-Mutant 25330 | -6/Deep Caves | Found Prototype Protection 25330 | -6/Deep Caves | Identified Zio. Weapon Casing 25378 | -6/Deep Caves | Identified Hacking Drone Bay 25506 | -6/Deep Caves | Found Prototype Protection 25506 | -6/Deep Caves | Identified Zio. Heavy Carapace 25543 | -6/Deep Caves | Found Zio. Heavy Carapace 25553 | -6/Deep Caves | Found Zio. Weapon Casing 25560 | -6/Deep Caves | Found Zio. Weapon Casing 25571 | -6/Deep Caves | Found Zio. Weapon Casing 25951 | -6/Deep Caves | Discovered new exit (range 7) 26407 | -6/Deep Caves | Spotted as-49945 26469 | -6/Deep Caves | Destroyed as-49945 26610 | -6/Deep Caves | Spotted as-69878 26643 | -6/Deep Caves | Destroyed as-69878 26647 | -6/Deep Caves | Found GOLEM Unit 26672 | -6/Deep Caves | Lost 3 parts (3u) 26676 | -6/Deep Caves | Build established: Mutant 27165 | -6/Deep Caves | Triggered Deep Caves wall 27169 | -6/Deep Caves | Exposed GOLEM chamber 27188 | -6/Deep Caves | Spotted AS-67868 27194 | -6/Deep Caves | Destroyed AS-59879 27202 | -6/Deep Caves | Destroyed AS-67868 27226 | -6/Deep Caves | Destroyed 41 combat bots 27318 | -6/Deep Caves | Found Prototype Special Weapon 27324 | -6/Deep Caves | Identified Field Lobotomy Kit 27613 | -6/Deep Caves | Found GOLEM Unit 28172 | -6/Deep Caves | Build established: Golem 28534 | -6/Deep Caves | Found Zio. Weapon Casing 28811 | -6/Deep Caves | Found GOLEM Unit 28816 | -6/Deep Caves | Found GOLEM Unit 28839 | -6/Deep Caves | Found GOLEM Unit 29026 | -6/Deep Caves | Entered Proximity Caves 29034 | -5/Proximity Caves | Attracted the attention of an 0b10 outpost 29060 | -5/Proximity Caves | Core integrity fell below 50% 29174 | -5/Proximity Caves | Learned Factory emergency access door positions 29178 | -5/Proximity Caves | Learned 4 Factory zone layouts 29941 | -5/Proximity Caves | Discovered new exit (range 8) 29963 | -5/Proximity Caves | Entered Factory 29963 | -5/Factory | Evolved 2 slots: Utility x1, Weapon x1 29964 | -5/Factory | Identified exit to Upper Caves 29965 | -5/Factory | Identified exit to Factory 30858 | -5/Factory | Discovered new exit (range 16) 30887 | -5/Factory | Entered Extension 30887 | -5/Extension | Accompanied by 1 ally 31008 | -5/Extension | Rescued a captive Derelict 31964 | -5/Extension | Spotted B-75 Beast 31981 | -5/Extension | Destroyed B-75 Beast 32005 | -5/Extension | Destroyed B-75 Beast 32789 | -5/Extension | Build established: Commander-Golem 32952 | -5/Extension | Identified exit to Cetus 33296 | -5/Extension | Rescued A7 33491 | -5/Extension | Discovered exit to Factory (range 10) 33573 | -5/Extension | Entered Cetus 33573 | -5/Cetus | Accompanied by 10 allies (A7) 33578 | -5/Cetus | Acquired a Cetus Manufacturing Module code from A7 33602 | -5/Cetus | Spotted Cetus Guard 33602 | -5/Cetus | Spotted Cetus Guard 33605 | -5/Cetus | Destroyed Cetus Guard 33605 | -5/Cetus | Spotted Cetus Guard 33611 | -5/Cetus | Destroyed Cetus Guard 33611 | -5/Cetus | Spotted Cetus Guard 33620 | -5/Cetus | Destroyed Cetus Guard 33626 | -5/Cetus | Allies destroyed Cetus Guard 33673 | -5/Cetus | System corruption reached 10% 33904 | -5/Cetus | Destroyed A7 33907 | -5/Cetus | Extracted ID and sensor layout for unrecognized location from A7's data core 34038 | -5/Cetus | System corruption reached 30% 34066 | -5/Cetus | Destroyed 8 combat bots 34068 | -5/Cetus | Lost 3 parts (3u) 34072 | -5/Cetus | Discovered new exit (range 15) 34121 | -5/Cetus | Spotted Cetus Guard 34122 | -5/Cetus | Spotted Cetus Guard 34126 | -5/Cetus | Spotted Cetus Guard 34138 | -5/Cetus | Destroyed Cetus Guard 34143 | -5/Cetus | Destroyed Cetus Guard 34144 | -5/Cetus | Destroyed Cetus Guard 34144 | -5/Cetus | Spotted Cetus Guard 34148 | -5/Cetus | Destroyed Cetus Guard 34169 | -5/Cetus | Discovered exit to Factory (range 15) 34183 | -5/Cetus | Met Revision 17 34308 | -5/Cetus | Identified exit to Archives 34316 | -5/Cetus | Build established: Scavenger-Golem 34343 | -5/Cetus | Entered Archives 34502 | -5/Archives | Discovered new exit (range 11) 34728 | -5/Archives | Discovered new exit (range 15) 35035 | -5/Archives | Discovered exit to Factory (range 15) 35088 | -5/Archives | Identified exit to Hub_04(d) 35182 | -5/Archives | Entered Hub_04(d) 35191 | -5/Hub_04(d) | Discovered exit to Factory (range 15) 35911 | -5/Hub_04(d) | Network Hub disabled 35933 | -5/Hub_04(d) | Entered Factory 35933 | -4/Factory | Evolved 2 slots: Propulsion x1, Utility x1 36513 | -4/Factory | Discovered new exit (range 5) 36529 | -4/Factory | Identified exit to Upper Caves 36717 | -4/Factory | Discovered new exit (range 11) 36843 | -4/Factory | Identified exit to Armory 36865 | -4/Factory | Entered Armory 36919 | -4/Armory | Found Gamma Bomb Array 36921 | -4/Armory | Found Gamma Bomb Array 36926 | -4/Armory | Found Gamma Bomb Array 37032 | -4/Armory | Fabricated Cargo Storage Unit (x1) 37116 | -4/Armory | Fabricated Combat Drone Bay (x1) 37294 | -4/Armory | Identified exit to Research 37341 | -4/Armory | Build established: Hauler-Golem 37403 | -4/Armory | First assault squad dispatched 37420 | -4/Armory | Incoming assault squad redirected 37569 | -4/Armory | Destroyed 11 combat bots 37582 | -4/Armory | Found Quantum Capacitor 37608 | -4/Armory | Found Prototype Device 37608 | -4/Armory | Identified Adv. EM Disruption Field 37697 | -4/Armory | System corruption reached 10% 37724 | -4/Armory | Destroyed 8 combat bots 37906 | -4/Armory | Destroyed 9 combat bots 37914 | -4/Armory | Lost 4 parts (1p3u) 38054 | -4/Armory | Discovered new exit (range 2) 38056 | -4/Armory | Identified exit to Lab 38061 | -4/Armory | Entered Lab 38436 | -4/Lab | Discovered exit to Research (range 8) 38460 | -4/Lab | Hidden lab's door opened automatically 38460 | -4/Lab | Sensor layout match revealed 38461 | -4/Lab | Gained access to the hidden lab's interior 38556 | -4/Lab | Found Core Expander 38556 | -4/Lab | Installed Core Expander, added new Weapon slot 38570 | -4/Lab | Found Alien Artifact 38570 | -4/Lab | Identified Integrated Reactor 38570 | -4/Lab | Installed Integrated Reactor, increased core energy generation (+10) 38583 | -4/Lab | Found Alien Artifact 38634 | -4/Lab | Found Prototype Hackware 38733 | -4/Lab | Found Prototype Protection 38733 | -4/Lab | Identified Hvy. Regenerative Plating 38809 | -4/Lab | Found Prototype Energy Gun 38814 | -4/Lab | Found Prototype Energy Gun 38954 | -4/Lab | Identified Tachyon Dispersion Ray (x2) 38974 | -4/Lab | Entered Research 38974 | -3/Research | Evolved 2 slots: Utility x2 39174 | -3/Research | Revision forces began assault on 0b10 39195 | -3/Research | Met up with Revision 17++ 39674 | -3/Research | Research terminal network offline 39812 | -3/Research | Discovered new exit (range 10) 39836 | -3/Research | Identified exit to Research 39898 | -3/Research | Identified Deep Network Scanner 40192 | -3/Research | Discovered new exit (range 5) 40199 | -3/Research | Identified exit to Testing 40208 | -3/Research | Entered Testing 40232 | -3/Testing | Found Unknown Device 40236 | -3/Testing | Identified Antimissile System 40351 | -3/Testing | Spotted PG-CJ6B55FI8E 40388 | -3/Testing | Spotted Striker 40485 | -3/Testing | Destroyed PG-CJ6B55FI8E 40733 | -3/Testing | Found Prototype Energy Cannon 41098 | -3/Testing | Found Prototype Ballistic Cannon 41098 | -3/Testing | Identified Omega Cannon 41340 | -3/Testing | Discovered exit to Research (range 15) 41476 | -3/Testing | Identified Potential Cannon 41958 | -3/Testing | First assault squad dispatched 41982 | -3/Testing | Incoming assault squad redirected 42090 | -3/Testing | Scanned by Researcher 42109 | -3/Testing | System corruption reached 10% 42126 | -3/Testing | System corruption reached 30% 42148 | -3/Testing | Lost 10 parts (1p3n3u3w) 42263 | -3/Testing | Destroyed 8 combat bots 42268 | -3/Testing | Lost 3 parts (1n1u1w) 42461 | -3/Testing | Entered Research 42461 | -2/Research | Evolved 2 slots: Power x1, Utility x1 42622 | -2/Research | Spotted B-90 Cyclops 42711 | -2/Research | First assault squad dispatched 42733 | -2/Research | Incoming assault squad redirected 43168 | -2/Research | Destroyed B-90 Cyclops 43226 | -2/Research | Lost 7 parts (2n2u3w) 43447 | -2/Research | Discovered new exit (range 15) 43517 | -2/Research | Identified exit to Access 43597 | -2/Research | Lost 3 parts (1p1n1u) 43695 | -2/Research | Cargo convoy interrupted 44088 | -2/Research | Identified exit to Quarantine 44216 | -2/Research | Found Prototype Device 44221 | -2/Research | Identified Exp. ECM Suite 44300 | -2/Research | Build established: Hauler-Mutant 44604 | -2/Research | Entered Quarantine 45391 | -2/Quarantine | Spotted Fortress 45508 | -2/Quarantine | Discovered new exit (range 5) 45515 | -2/Quarantine | Identified exit to Section 7 45727 | -2/Quarantine | Entered Section 7 45768 | -2/Section 7 | Spotted S7 Guard 45796 | -2/Section 7 | Found Alien Artifact 46290 | -2/Section 7 | Found Alien Artifact 46290 | -2/Section 7 | Identified Core Reset Matrix 46290 | -2/Section 7 | Identified Integrated Thermoelectric Network 46290 | -2/Section 7 | Identified Transdimensional Reconstructor 46290 | -2/Section 7 | Used Core Reset Matrix 46294 | -2/Section 7 | Sensed 21 artifacts in vicinity 46465 | -2/Section 7 | Discovered exit to Access (range 10) 46623 | -2/Section 7 | Found Microwarp Drive 46685 | -2/Section 7 | Spotted S7 Guard 46694 | -2/Section 7 | Found Core Membrane 46694 | -2/Section 7 | Installed Core Membrane, gained immunity to corruption 46740 | -2/Section 7 | Destroyed S7 Guard 46800 | -2/Section 7 | Scanned by Researcher 46941 | -2/Section 7 | Spotted Executioner 46941 | -2/Section 7 | Spotted Executioner 46958 | -2/Section 7 | Destroyed Executioner 46959 | -2/Section 7 | Destroyed Executioner 47017 | -2/Section 7 | First assault squad dispatched 47037 | -2/Section 7 | Incoming assault squad redirected 47097 | -2/Section 7 | Found Matter Drive 47104 | -2/Section 7 | Installed Integrated Thermoelectric Network, gained heat-energy exchange potential 47264 | -2/Section 7 | Integrated with Sigix Exoskeleton 47293 | -2/Section 7 | Intercept squad dispatched 47293 | -2/Section 7 | Spotted B-99 Colossus 47305 | -2/Section 7 | Found Integrated Dissipator 47305 | -2/Section 7 | Installed Integrated Dissipator, increased core heat dissipation (+20) 47307 | -2/Section 7 | Found Integrated Dissipator 47307 | -2/Section 7 | Installed Integrated Dissipator, increased core heat dissipation (+20) 47309 | -2/Section 7 | Found Integrated Dissipator 47309 | -2/Section 7 | Installed Integrated Dissipator, increased core heat dissipation (+20) 47309 | -2/Section 7 | Spotted Tracker 47315 | -2/Section 7 | Destroyed Tracker 47316 | -2/Section 7 | Spotted Tracker 47328 | -2/Section 7 | Destroyed Tracker 47330 | -2/Section 7 | Spotted Combat Programmer 47336 | -2/Section 7 | Destroyed Combat Programmer 47357 | -2/Section 7 | Spotted Combat Programmer 47361 | -2/Section 7 | Destroyed Combat Programmer 47451 | -2/Section 7 | Entered Access 47451 | -1/Access | Evolved 2 slots: Power x1, Utility x1 47456 | -1/Access | Emitted hypermatrix ping 47461 | -1/Access | Assembled emerged from beneath the floor 47500 | -1/Access | Found Prototype Processor 47500 | -1/Access | Identified Exp. Signal Interpreter 47598 | -1/Access | Build established: Alien-Sigix 47629 | -1/Access | Assembled emerged from beneath the floor 47643 | -1/Access | Assembled emerged from beneath the floor 47692 | -1/Access | Incoming investigation squad redirected 47701 | -1/Access | First assault squad dispatched 47735 | -1/Access | Spotted B-99 Colossus 47735 | -1/Access | Spotted B-99 Colossus 47766 | -1/Access | Intercept squad dispatched 47771 | -1/Access | Discovered new exit (range 18) 47782 | -1/Access | Spotted Tracker 47783 | -1/Access | Spotted Tracker 47787 | -1/Access | Assembled emerged from beneath the floor 47818 | -1/Access | Sigix Exoskeleton integrity reduced to 80% 47826 | -1/Access | Spotted Combat Programmer 47826 | -1/Access | Assimilated B-99 Colossus with FLK Orb 47839 | -1/Access | Assimilated Combat Programmer with FLK Orb 47841 | -1/Access | Spotted Executioner 47844 | -1/Access | Allies destroyed Tracker 47847 | -1/Access | Spotted Striker 47854 | *** | Heading to fleet! Last Messages --------------- 47841_ Slug penetrates Reinforced Barrier. 47841_ Slug penetrates Tracker. 47841_ EMDS Slug penetrates E-15 Imp. 47841_ E-15 Imp destroyed. 47842_ Dropped Microwarp Drive. 47843_ Slug penetrates Colossus 10a. 47843_ Combat Programmer fails to hack Tracker. 47844_ Tracker destroyed. 47844_ Slug penetrates Wall. 47844_ Slug penetrates Reinforced Barrier. 47844_ Slug penetrates Wall. 47845_ EMDS Slug penetrates Sealed Heavy Doors. 47846_ Slug penetrates Colossus 10a. 47847_ Combat Programmer resets Colossus 10a, system corruption cleaned. 47848_ Slug penetrates Executioner. 47848_ Executioner suffers critical hit (Destroy). 47848_ Destroyed Prototype Device. 47849_ Slug penetrates Combat Programmer. 47852_ Quantum Shear penetrates Main Access Shell. 47852_ Main Access Shell breached. Map ----- +----------------------------------------------------+ | ????????????????????#######################/###### | | ????????????????????############### | | ??????????????????? #### | | ??????????????????? #### """"" | | ??????????????????? #### """""""" | | ??????????????????? #### """""""" | | ??????????????????? #### """"" | | ?????????????????? #### == | | ??????????????????? !#### !%* | | ???????????????????############################### | | ???????????????????####################### | | ??????????????????? [ ############## ! | | ??????????????????? ############## | | ????????????g????? ############## " | | ???????????????? ########### ##""" | | ??????????? ??? ########### # """ | | ??????##### # ] ########### " | | ???######## ########################### | | ??######### ########################## | | ########### #######"#################### | | ########### """T"""" """" %% | | ########### """ """" """" # | | ########### " """" " """" BB ###"##### | | ########### " " " """" BB ## | | ########### " " "" " """" p % ## | | ########### " " X" " """" e ## | | ########### t " " " """"! %%% = % "# | | ###########k " """" " """" %#%/ % " | | ########### " """" " #% # | | ########### " """"s ###%" # | | ########### #######"#########;;""""########" ""/ | | ########### ################## ######### "%%" | | ########### ###############################"%""" | | ## # ############################### " # | | ## # ############################### # | | ## ]!! + ############################### # | | ## !! #k ############################"#" ## | | ## !! #% ###################### # ## | | ## # ###################### ^ # ## | | ## # ###################### "" # ## | | ## # ###################### "" # ## | | ## [ # ###################### "" # ## | | ##"######## k # S # ## | | ##"######## # "" # ## | | #] ## # "" # | | # ## # "" / | | # ## # # | | # = ##% # [ # | | # ## # " # ## | | " ## ######### ## # """ # # | +----------------------------------------------------+ Best States ------------- Heat Dissipation 192 Coolant Potential 65 Energy Generation 103 Energy Capacity 1700 Matter Stores 657 Matter Capacity 700 Sight Range 16 Robot Scan Range 20 Terrain Scan Density 10 Jamming Range 16 Cloak Strength 4 Power Amplification 20 Additional Mass Support 20 Armor Coverage 1200 Resistance: KI 50 Resistance: TH 50 Resistance: EX 50 Resistance: EM 50 Resistance: I 50 Resistance: S 50 Resistance: P 50 Propulsion Shielding 66 Weapon Shielding 100 Point Defense Rating 160 Weapon Cycling 15 Evasion (%) 69 Targeting Accuracy 12 Target Analysis 5 Recoil Reduction 6 Energy Filtering 30 Particle Charging 25 Offensive Hacking 25 Defensive Hacking 14 Authchip Count 2 Trap Extractor Capacity 8 Item Schematics ----------------- Enh. Biometal Leg | -2/Section 7 | Archive Robot Schematics ------------------ G-73 Enforcer | -2/Section 7 | Archive Fabricated ------------ Y-54 Guardian | x2 | -7/Factory | Preloaded Combat Drone Bay | x1 | -6/Factory | Authchip Exp. Targeting Computer | x1 | -6/Factory Cargo Storage Unit | x1 | -4/Armory | Authchip Combat Drone Bay | x1 | -4/Armory | Authchip Alien Tech Used ----------------- Core Expander Integrated Reactor Core Reset Matrix Core Membrane Integrated Thermoelectric Network Sigix Exoskeleton Sigix Sheargun Integrated Dissipator Matter Drive Achievements -------------- None Challenges ------------ None Game ------ Seed ImprinterDerelictComputer Manual? 0 Play Time 03:46:58 Cumulative 335.3 hours Start 2023.04.27 @ 13:05:08 End 2023.04.28 @ 13:30:24 Sessions 29 Manual Loads 0 Difficulty Rogue Special Mode None Game No. 468 Rogue 441 Adventurer 4 Explorer 23 Win Type 2 Total 19 Types 14/0/2/2/1/0/0/0/0 Lore% 77 Gallery% 92 Achievement% 82 Wizard Run 0 Options --------- ASCII 0 Keyboard 1 Movement Numpad Keybinds 0 Fullscreen 2 Font 18/SmallcapsGlow Map View 76x50 Tactical HUD 1 Map Filters NONE Filters NONE Steam 1 RUN: de8080dd-cf40-4a5a-a1b0-de552d1a9477